Workbook

Sheet Sheet1 (hidden)
B3: TRUE
B4: FALSE

Sheet NPSHa
C4: System NPSHa Margin Calculator
C10: Section 1:
C12: This calculator has been arranged to introduce the required concepts to assist with assessing and understanding the requirements for succesful and reliable installation of the Hydra-cell pump range. The formulas have been included to give a basis for understanding how the calculations in section 2 are arrived at, it is important to note the units in use for each element of the calculation if you plan to work through this by hand. The Calculator in section 2 will generate the NPSHa for the system and assess this against the pump selected in terms of NPSHr for the pump selected.
C19: Calculating velocity: target velocity range is between 0.3 - 0.9 m/s.
E20: Where: | H20: Units
F21: V | G21: Velocity | H21: m/s
F22: LPM | G22: Flow rate | H22: Litres per minute.
F23: Pipe ID | G23: Pipe internal diameter | H23: mm^2
C25: Calculating Acceleration Head (Ha): Target acceleration head as low as possible, below 10m.
E26: Where: | H26: units
F27: Ha | G27: Acceleration head | H27: m
F28: L | G28: Actual length of suction pipe. | H28: m
F29: V | G29: Velocity | H29: m/s
F30: N | G30: pump shaft rotational speed | H30: RPM
F31: C | G31: Constant for pump type | H31: Pump model | I31: Constant
H32: G03/ G10/ G04/ G25 | I32: 0.066
H33: G15/ G35/ G66 | I33: 0.04
H34: G20 | I34: 0.628
F35: K | G35: compressability constant | H35: See table 1.
F36: G | G36: Gravitational constant | H36: m/s/s | I36: 9.81
C38: Calculating Net Positive Suction Head available (NPSHa): NPSHa should always be greater than Net positive Suction Head Required (NPSHr)
E39: Where: | H39: Units
F40: Pt | G40: atmospheric pressure | H40: m
F41: Hz | G41: Vertical distance from minimum liquid level to centreline of pump suction port | H41: m
F42: Hf | G42: Friction loses in suction pipe | H42: m | I42: assumed zero with low viscosity fluids such as water
F43: Ha | G43: Acceleration head | H43: m
F44: Pvp | G44: Absolute vapour pressure of liquid at maximum pumping temperature. | H44: m
C47: Section 2:
C49: Select Pump Model | D49: T200K | E49: Units | G49: Key
C50: Vapour Pressure | D50: 0 | E50: Bara | G50: Input Values
C51: S.G | D51: 1 | E51: g/cm^3 | G51: Calculated Values
C52: Flow Rate | D52: =$D$53/1000 -> 16.452 | E52: m3/hr | G52: Marginal Result
D53: =$D$54*60 -> 16452 | E53: l/hr | G53: Unacceptable result
D54: =$D$55/$I$74 -> 274.2 | E54: L/min | G54: Good result
C55: Pump Speed | D55: 300 | E55: RPM
C56: Suction Pipe ID | D56: 50 | E56: mm | G56: Note: Operating Margin should be >= +1m for reliable operation. Enter Flow rate (any 1 unit) or pump speed, the remaining information will update automatically.
C57: Static head | E57: m
C58: Suction Pipe Length | D58: 3 | E58: m
C59: Inlet Pressure (tank/atm) | D59: 1 | E59: bara
C60: Liquid Constant (TABLE 1) | D60: 2 | E60: - | G60: TABLE 1 - Suggested Liquid Constants.
G61: 1.4 | H61: Deaerated water
C62: Fluid Velocity | D62: =21.23*D54/(D56^2) -> 2.3285064 | E62: m/s | G62: 1.5 | H62: Water and most other low compressible liquids
C63: Ha | D63: =D58*D55*D62*I73/(D60*9.81) -> 4.272488807 | E63: m | G63: 1.7 | H63: Lightly compressible liquids
C64: Pt | D64: =10.2*D59 -> 10.2 | E64: mwc | G64: 2 | H64: Compressible liquids
C65: Hz | D65: =D57*D51 -> 0 | E65: mwc | G65: 2.5 | H65: Highly compressible Hydrocarbons
C66: Hf | D66: 0 | E66: mwc
C67: Ha | D67: =IF(D82=TRUE,IF(D64*D84<1.4,1.4,D64*D84),D63*D51) -> 4.272488807 | E67: mwc
C68: Pvp | D68: =10.2*D50 -> 0 | E68: mwc | G68: Pump Data
C69: NPSHa | D69: =D64+D65-D66-D67-D68 -> 5.927511193 | E69: mwc | G69: NPSHr Regression | H69: x3 | I69: =VLOOKUP($D$49,'Pump Data'!$A$3:$H$43,2,FALSE) -> 1.1320296e-08
C70: NPSHr | D70: =($I$69*$I$76^3)+($I$70*$I$76^2)+($I$71*$I$76)+$I$72 -> 5.198647784 | E70: mwc | H70: x2 | I70: =VLOOKUP($D$49,'Pump Data'!$A$3:$H$43,3,FALSE) -> -4.641374986e-06
C71: Operating Margin | D71: =D69-D70 -> 0.7288634087 | E71: mwc | H71: x | I71: =VLOOKUP($D$49,'Pump Data'!$A$3:$H$43,4,FALSE) -> 0.001949281444
H72: c | I72: =VLOOKUP($D$49,'Pump Data'!$A$3:$H$43,5,FALSE) -> 4.725939107
C73: Note: If the Ha figure above is high and changes to the pipeline inside diameter or length are not possible it may be possible to reduce Ha thorugh the use of a suction stabiliser, please select true below to see change to margin with the use of a suction stabiliser. | H73: Pump Constant | I73: =VLOOKUP($D$49,'Pump Data'!$A$3:$H$43,7,FALSE) -> 0.04
H74: Delivery Constant (Rev/ litre) | I74: =VLOOKUP($D$49,'Pump Data'!$A$3:$H$43,8,FALSE) -> 1.094091904
H75: NPSHr (mwc) | I75: =($I$69*$D$55^3)+($I$70*$D$55^2)+($I$71*$D$55)+$I$72 -> 5.198647784
H76: Offset RPM | I76: =IF(D55<VLOOKUP(NPSHa!D49,'Pump Data'!A3:H43,6,FALSE),0,NPSHa!D55-VLOOKUP(NPSHa!D49,'Pump Data'!A3:H43,6,FALSE)) -> 300
H77: Max RPM | I77: =VLOOKUP($D$49,'Pump Data'!$A$3:$I$43,9,FALSE) -> 400
H78: Diaphragms | I78: =IF(I73=0.628,1,IF(I73=0.066,3,IF(I73=0.04,5))) -> 5
H79: Dampener const | I79: =IF(I73=0.628,1,IF(I73=0.066,7,IF(I73=0.04,9))) -> 9
H80: Displ/stroke | I80: =1/(I74*I78) -> 0.1828
C82: Use Inlet Stabiliser? | D82: FALSE
C83: Pre-Charge | D83: 0.5
C84: Level of Dampening | D84: 0.0065
C85: Volume required | D85: =I80/(D83*D84*I79) -> 6.24957265 | E85: Litres
C86: Residual pulsation | D86: =2*D67/10.2 -> 0.8377429034 | E86: bar peak-peak
C87: API limit | D87: =3500/(100*(D56*D55*I78*2/60)^0.5) -> 0.7 | E87: bar peak-peak
C88: Acceptable acc to API674? | D88: =D86<D87 -> FALSE

Sheet VP by Raoult's Law (hidden)
C3: Molecular weight | D3: Weight | E3: Mole | F3: Mole | G3: Pvp
C4: g/mol | F4: % | G4: kPa
B5: DMSO | C5: 78.13 | D5: 0.7 | E5: =D5/C5 -> 0.008959426597 | F5: =E5/$E$8 -> 0.5444052017 | G5: 0.133
B6: ACN | C6: 41.053 | D6: 0.3 | E6: =D6/C6 -> 0.007307626726 | F6: =E6/$E$8 -> 0.4440362292 | G6: 12.7
B7: DEA | C7: 105.14 | D7: 0.02 | E7: 0.0001902225604 | F7: 0.01155856909 | G7: 35.7
D8: =SUM(D5:D7) -> 1.02 | E8: =SUM(E5:E7) -> 0.01645727588
C12: Pvp by Raoult's law | D12: =(F5*G5)+(F6*G6)+(F7*G7) -> 6.124306919 | E12: kPa

Sheet Water Vapour Pressure
C3: Temperature | D3: 30 | E3: °C
G6: Antoine valid
C7: Liquid | D7: Antoine Coefficients | G7: From | H7: To | I7: Data | J7: PvP
C8: Name | D8: A | E8: B | F8: C | G8: (DegC) | H8: (DegC) | I8: Source | J8: (Bar)
C9: Water | D9: 4.6543 | E9: 1435.264 | F9: -64.848 | G9: 1 | H9: 100 | I9: NIST | J9: =10^(D9-(E9/(D3+273.15+F9))) -> 0.04279780225

Sheet Pump Data (hidden)
B1: NPSHr | F1: Offset | G1: C | H1: Revs/l | I1: Max RPM
B2: X3 | C2: X2 | D2: X | E2: C
A3: G-20/21/22 Series X Cam | B3: -2.445515765e-11 | C3: 1.122691999e-06 | D3: -3.664089729e-05 | E3: 2.381405666 | F3: 0 | G3: 0.628 | H3: 500 | I3: 1750
A4: G-03 / G-13 Series X Cam | B4: 1.310485055e-11 | C4: 1.013698487e-06 | D4: 4.606459382e-05 | E4: 1.542840161 | F4: 0 | G4: 0.066 | H4: 149.2537313 | I4: 1750
A5: G-04 / D-04 X Cam | B5: 4.276208265e-12 | C5: 5.423659876e-07 | D5: 3.257517043e-05 | E5: 1.820159208 | F5: 0 | G5: 0.066 | H5: 156.25 | I5: 1750
A6: G-10 / D-10 X Cam | B6: 2.525252525e-11 | C6: 9.053030303e-07 | D6: 3.015873016e-05 | E6: 3.502878788 | F6: 0 | G6: 0.066 | H6: 47.39336493 | I6: 1450
A7: G-25 / H-25 X Cam | B7: -6.944444444e-11 | C7: 2.098214286e-06 | D7: -4.305555556e-05 | E7: 4.251190476 | F7: 0 | G7: 0.066 | H7: 13.86962552 | I7: 1050
A8: G-15 / D-15 X Cam | B8: 4.734848485e-12 | C8: 9.431818182e-07 | D8: -9.226190476e-06 | E8: 3.199393939 | F8: 0 | G8: 0.04 | H8: 29.49852507 | I8: 1450
A9: G-35 / D-35 X Cam | B9: 4.294e-10 | C9: 1.606e-06 | D9: 0.0002112 | E9: 4.929 | F9: 0 | G9: 0.04 | H9: 7.610350076 | I9: 1050
A10: G-66 | B10: -4.084451314e-24 | C10: 1.089285714e-06 | D10: 0.001417857143 | E10: 2.092 | F10: 0 | G10: 0.04 | H10: =1/0.248 -> 4.032258065 | I10: 1000
A11: G-20/21/22 Series E Cam | B11: 4.183569347e-13 | C11: 7.918832053e-07 | D11: -1.300117655e-06 | E11: 2.381486872 | F11: 0 | G11: 0.628 | H11: 659 | I11: 1750
A12: G-03 / G-13 Series E Cam | B12: 9.274299282e-12 | C12: 7.549270603e-07 | D12: 6.453995116e-06 | E12: 1.549889486 | F12: 0 | G12: 0.066 | H12: 212.7659574 | I12: 1750
A13: G-04 / D-04 E Cam | B13: 1.853077101e-11 | C13: 3.507446556e-07 | D13: 4.253609995e-05 | E13: 1.819853155 | F13: 0 | G13: 0.066 | H13: 227.2727273 | I13: 1750
A14: G-10 / D-10 E Cam | B14: 2.735105649e-11 | C14: 8.122527409e-07 | D14: 5.986767962e-05 | E14: 3.503383337 | F14: 0 | G14: 0.066 | H14: 52.35602094 | I14: 1750
A15: G-25 / H-25 E Cam | B15: 4.195556062e-24 | C15: 1.857142857e-06 | D15: -2.142857143e-05 | E15: 4.244285714 | F15: 0 | G15: 0.066 | H15: 15.15151515 | I15: 1150
A16: G-15 / D-15 E Cam | B16: 2.710481549e-13 | C16: 9.355863021e-07 | D16: 2.444055228e-06 | E16: 2.750587738 | F16: 0 | G16: 0.04 | H16: 31.84713376 | I16: 1750
A17: G-35 / D-35 E Cam | B17: -3.526e-11 | C17: 2.704e-06 | D17: 1.974e-05 | E17: 4.1 | F17: 0 | G17: 0.04 | H17: 8.928571429 | I17: 1150
A18: G-20/21/22 Series S Cam | B18: 1.133469876e-12 | C18: 6.650170454e-07 | D18: -9.70769438e-06 | E18: 2.378063957 | F18: 0 | G18: 0.628 | H18: 906 | I18: 1750
A19: G-03 / G-13 Series S Cam | B19: 1.426448734e-12 | C19: 9.764481014e-07 | D19: 9.310991081e-05 | E19: 3.026977271 | F19: 0 | G19: 0.066 | H19: 270.2702703 | I19: 1750
A20: G-04 / D-04 S Cam | B20: 1.853077101e-11 | C20: 3.507446556e-07 | D20: 4.253609995e-05 | E20: 1.819853155 | F20: 0 | G20: 0.066 | H20: 285.7142857 | I20: 1750
A21: G-10 / D-10 S Cam | B21: 3.350734028e-11 | C21: 4.698140349e-07 | D21: 7.515878033e-05 | E21: 3.50226161 | F21: 0 | G21: 0.066 | H21: 76.92307692 | I21: 1750
A22: G-25 / H-25 S Cam | B22: 2.517333637e-24 | C22: 1.595238095e-06 | D22: -7.142857143e-05 | E22: 4.247619048 | F22: 0 | G22: 0.066 | H22: 18.69158879 | I22: 1150
A23: G-10 / D-10 I Cam | B23: -1.360840832e-11 | C23: 2.2273421e-07 | D23: 1.144349225e-07 | E23: 3.50357186 | F23: 0 | G23: 0.066 | H23: 116.2790698 | I23: 1750
A24: G-25 / H-25 I Cam | B24: 6.944444444e-11 | C24: 1.125e-06 | D24: -3.373015873e-05 | E24: 4.247380952 | F24: 0 | G24: 0.066 | H24: 25.70694087 | I24: 1150
A25: G-20/21/22 Series B Cam | B25: -9.456462424e-12 | C25: 5.240921906e-07 | D25: -1.045771642e-05 | E25: 2.376135917 | F25: 0 | G25: 0.628 | H25: 1400 | I25: 1750
A26: G-03 / G-13 Series B Cam | B26: 3.014566966e-11 | C26: 7.054714445e-07 | D26: 0.0001142388775 | E26: 3.019715855 | F26: 0 | G26: 0.066 | H26: 476.1904762 | I26: 1750
A27: G-20/21/22 Series G Cam | B27: -8.544193968e-12 | C27: 3.930291076e-07 | D27: -1.92564423e-05 | E27: 2.378897453 | F27: 0 | G27: 0.628 | H27: 2302 | I27: 1750
A28: G-03 / G-13 Series G Cam | B28: 2.289344633e-11 | C28: 5.139260525e-07 | D28: 8.57885057e-05 | E28: 3.017776467 | F28: 0 | G28: 0.066 | H28: 769.2307692 | I28: 1750
A29: T100E | B29: 0 | C29: 6.640936972e-06 | D29: 6.049344161e-05 | E29: 3.638309063 | F29: 0 | G29: 0.066 | H29: =450/366 -> 1.229508197 | I29: 450
A30: T100F | B30: 0 | C30: 6.640936972e-06 | D30: 6.049344161e-05 | E30: 3.638309063 | F30: 0 | G30: 0.066 | H30: =450/290 -> 1.551724138 | I30: 450
A31: T100H | B31: 0 | C31: 6.640936972e-06 | D31: 6.049344161e-05 | E31: 3.638309063 | F31: 0 | G31: 0.066 | H31: =450/258 -> 1.744186047 | I31: 450
A32: T100K | B32: 0 | C32: 6.640936972e-06 | D32: 6.049344161e-05 | E32: 3.638309063 | F32: 0 | G32: 0.066 | H32: =1/0.384 -> 2.604166667 | I32: 450
A33: T100M | B33: 0 | C33: 6.640936972e-06 | D33: 6.049344161e-05 | E33: 3.638309063 | F33: 0 | G33: 0.066 | H33: =1/0.327 -> 3.058103976 | I33: 450
A34: T100S | B34: 0 | C34: 6.640936972e-06 | D34: 6.049344161e-05 | E34: 3.638309063 | F34: 0 | G34: 0.066 | H34: =1/0.222 -> 4.504504505 | I34: 450
A35: Q155E | B35: =-0.00000000124341 -> -1.24341e-09 | C35: 2.846483604e-06 | D35: 0.0007501602781 | E35: 4.768686521 | F35: 0 | G35: 0.04 | H35: =1/1.323 -> 0.7558578987 | I35: 450
A36: Q155F | B36: =-0.00000000124341 -> -1.24341e-09 | C36: 2.846483604e-06 | D36: 0.0007501602781 | E36: 4.768686521 | F36: 0 | G36: 0.04 | H36: =1/1.068 -> 0.936329588 | I36: 450
A37: Q155H | B37: -1.24341e-09 | C37: 2.846483604e-06 | D37: 0.0007501602781 | E37: 4.768686521 | F37: 0 | G37: 0.04 | H37: =1/0.936 -> 1.068376068 | I37: 450
A38: Q155K | B38: -1.24341e-09 | C38: 2.846483604e-06 | D38: 0.0007501602781 | E38: 4.768686521 | F38: 0 | G38: 0.04 | H38: 1.529051988 | I38: 450
A39: Q155M | B39: -1.24341e-09 | C39: 2.846483604e-06 | D39: 0.0007501602781 | E39: 4.768686521 | F39: 0 | G39: 0.04 | H39: 1.779359431 | I39: 450
A40: T200K | B40: 1.1320296e-08 | C40: -4.641374986e-06 | D40: 0.001949281444 | E40: 4.725939107 | F40: 0 | G40: 0.04 | H40: =1/0.914 -> 1.094091904 | I40: 400 | K40: 0.000000011x3 - 0.000004641x2 + 0.001949281x + 4.725939107
A41: T200K | B41: 1.1320296e-08 | C41: -4.641374986e-06 | D41: 0.001949281444 | E41: 4.725939107 | F41: 0 | G41: 0.04 | H41: =1/0.8 -> 1.25 | I41: 400 | K41: R² = 0.998494947
A42: T200P | B42: 1.1320296e-08 | C42: -4.641374986e-06 | D42: 0.001949281444 | E42: 4.725939107 | F42: 0 | G42: 0.04 | H42: =1/0.712 -> 1.404494382 | I42: 400
A43: T200Q | B43: 1.1320296e-08 | C43: -4.641374986e-06 | D43: 0.001949281444 | E43: 4.725939107 | F43: 0 | G43: 0.04 | H43: =1/0.625 -> 1.6 | I43: 400

Sheet NPSHr (hidden)
B1: Max RPM | C1: =NPSHa!I77 -> 400
B3: Speed | C3: Offset Speed | D3: NPSHr
B4: RPM | C4: RPM | D4: mwc
A5: 0 | B5: 0 | C5: =IF(B5<$J$9,0,B5-$J$9) -> 0 | D5: =($J$5*$C5^3)+($J$6*$C5^2)+($J$7*$C5)+$J$8 -> 4.725939107 | I5: x3 | J5: =NPSHa!I69 -> 1.1320296e-08
A6: 1 | B6: =$C$1*A6/100 -> 4 | C6: =IF(B6<$J$9,0,B6-$J$9) -> 4 | D6: =($J$5*$C6^3)+($J$6*$C6^2)+($J$7*$C6)+$J$8 -> 4.733662696 | I6: x2 | J6: =NPSHa!I70 -> -4.641374986e-06
A7: 2 | B7: 8 | C7: 8 | D7: 4.741242107 | I7: x | J7: =NPSHa!I71 -> 0.001949281444
A8: 3 | B8: 12 | C8: 12 | D8: 4.748681688 | I8: c | J8: =NPSHa!I72 -> 4.725939107
A9: 4 | B9: 16 | C9: 16 | D9: 4.755985786 | I9: Offset | J9: =VLOOKUP(NPSHa!D49,'Pump Data'!A3:F43,6,FALSE) -> 0
A10: 5 | B10: 20 | C10: 20 | D10: 4.763158749
A11: 6 | B11: 24 | C11: 24 | D11: 4.770204922
A12: 7 | B12: 28 | C12: 28 | D12: 4.777128653
A13: 8 | B13: 32 | C13: 32 | D13: 4.783934289
A14: 9 | B14: 36 | C14: 36 | D14: 4.790626177
A15: 10 | B15: 40 | C15: 40 | D15: 4.797208664
A16: 11 | B16: 44 | C16: 44 | D16: 4.803686097
A17: 12 | B17: 48 | C17: 48 | D17: 4.810062823
A18: 13 | B18: 52 | C18: 52 | D18: 4.816343189
A19: 14 | B19: 56 | C19: 56 | D19: 4.822531541
A20: 15 | B20: 60 | C20: 60 | D20: 4.828632228
A21: 16 | B21: 64 | C21: 64 | D21: 4.834649596
A22: 17 | B22: 68 | C22: 68 | D22: 4.840587991
A23: 18 | B23: 72 | C23: 72 | D23: 4.846451761
A24: 19 | B24: 76 | C24: 76 | D24: 4.852245254
A25: 20 | B25: 80 | C25: 80 | D25: 4.857972815
A26: 21 | B26: 84 | C26: 84 | D26: 4.863638792
A27: 22 | B27: 88 | C27: 88 | D27: 4.869247531
A28: 23 | B28: 92 | C28: 92 | D28: 4.874803381
A29: 24 | B29: 96 | C29: 96 | D29: 4.880310688
A30: 25 | B30: 100 | C30: 100 | D30: 4.885773798
A31: 26 | B31: 104 | C31: 104 | D31: 4.891197059
A32: 27 | B32: 108 | C32: 108 | D32: 4.896584818
A33: 28 | B33: 112 | C33: 112 | D33: 4.901941422
A34: 29 | B34: 116 | C34: 116 | D34: 4.907271218
A35: 30 | B35: 120 | C35: 120 | D35: 4.912578552
A36: 31 | B36: 124 | C36: 124 | D36: 4.917867773
A37: 32 | B37: 128 | C37: 128 | D37: 4.923143226
A38: 33 | B38: =$C$1*A38/100 -> 132 | C38: 132 | D38: 4.928409259
A39: 34 | B39: 136 | C39: 136 | D39: 4.933670219
A40: 35 | B40: 140 | C40: 140 | D40: 4.938930452
A41: 36 | B41: 144 | C41: 144 | D41: 4.944194306
A42: 37 | B42: 148 | C42: 148 | D42: 4.949466129
A43: 38 | B43: 152 | C43: 152 | D43: 4.954750265
A44: 39 | B44: 156 | C44: 156 | D44: 4.960051064
A45: 40 | B45: 160 | C45: 160 | D45: 4.965372871
A46: 41 | B46: 164 | C46: 164 | D46: 4.970720034
A47: 42 | B47: 168 | C47: 168 | D47: 4.9760969
A48: 43 | B48: 172 | C48: 172 | D48: 4.981507816
A49: 44 | B49: 176 | C49: 176 | D49: 4.986957128
A50: 45 | B50: 180 | C50: 180 | D50: 4.992449184
A51: 46 | B51: 184 | C51: 184 | D51: 4.997988331
A52: 47 | B52: 188 | C52: 188 | D52: 5.003578915
A53: 48 | B53: 192 | C53: 192 | D53: 5.009225284
A54: 49 | B54: 196 | C54: 196 | D54: 5.014931785
A55: 50 | B55: 200 | C55: 200 | D55: 5.020702765
A56: 51 | B56: 204 | C56: 204 | D56: 5.02654257
A57: 52 | B57: 208 | C57: 208 | D57: 5.032455548
A58: 53 | B58: 212 | C58: 212 | D58: 5.038446046
A59: 54 | B59: 216 | C59: 216 | D59: 5.04451841
A60: 55 | B60: 220 | C60: 220 | D60: 5.050676988
A61: 56 | B61: 224 | C61: 224 | D61: 5.056926126
A62: 57 | B62: 228 | C62: 228 | D62: 5.063270172
A63: 58 | B63: 232 | C63: 232 | D63: 5.069713473
A64: 59 | B64: 236 | C64: 236 | D64: 5.076260376
A65: 60 | B65: 240 | C65: 240 | D65: 5.082915227
A66: 61 | B66: 244 | C66: 244 | D66: 5.089682373
A67: 62 | B67: 248 | C67: 248 | D67: 5.096566163
A68: 63 | B68: 252 | C68: 252 | D68: 5.103570942
A69: 64 | B69: 256 | C69: 256 | D69: 5.110701057
A70: 65 | B70: =$C$1*A70/100 -> 260 | C70: =IF(B70<$J$9,0,B70-$J$9) -> 260 | D70: =($J$5*$C70^3)+($J$6*$C70^2)+($J$7*$C70)+$J$8 -> 5.117960856
A71: 66 | B71: 264 | C71: 264 | D71: 5.125354686
A72: 67 | B72: 268 | C72: 268 | D72: 5.132886893
A73: 68 | B73: 272 | C73: 272 | D73: 5.140561825
A74: 69 | B74: 276 | C74: 276 | D74: 5.148383829
A75: 70 | B75: 280 | C75: 280 | D75: 5.156357251
A76: 71 | B76: 284 | C76: 284 | D76: 5.164486438
A77: 72 | B77: 288 | C77: 288 | D77: 5.172775738
A78: 73 | B78: 292 | C78: 292 | D78: 5.181229498
A79: 74 | B79: 296 | C79: 296 | D79: 5.189852064
A80: 75 | B80: 300 | C80: 300 | D80: 5.198647784
A81: 76 | B81: 304 | C81: 304 | D81: 5.207621004
A82: 77 | B82: 308 | C82: 308 | D82: 5.216776072
A83: 78 | B83: 312 | C83: 312 | D83: 5.226117334
A84: 79 | B84: 316 | C84: 316 | D84: 5.235649138
A85: 80 | B85: 320 | C85: 320 | D85: 5.24537583
A86: 81 | B86: 324 | C86: 324 | D86: 5.255301758
A87: 82 | B87: 328 | C87: 328 | D87: 5.265431268
A88: 83 | B88: 332 | C88: 332 | D88: 5.275768708
A89: 84 | B89: 336 | C89: 336 | D89: 5.286318424
A90: 85 | B90: 340 | C90: 340 | D90: 5.297084764
A91: 86 | B91: 344 | C91: 344 | D91: 5.308072074
A92: 87 | B92: 348 | C92: 348 | D92: 5.319284702
A93: 88 | B93: 352 | C93: 352 | D93: 5.330726994
A94: 89 | B94: 356 | C94: 356 | D94: 5.342403297
A95: 90 | B95: 360 | C95: 360 | D95: 5.354317959
A96: 91 | B96: 364 | C96: 364 | D96: 5.366475327
A97: 92 | B97: 368 | C97: 368 | D97: 5.378879747
A98: 93 | B98: 372 | C98: 372 | D98: 5.391535566
A99: 94 | B99: 376 | C99: 376 | D99: 5.404447131
A100: 95 | B100: 380 | C100: 380 | D100: 5.41761879
A101: 96 | B101: 384 | C101: 384 | D101: 5.43105489
A102: 97 | B102: =$C$1*A102/100 -> 388 | C102: 388 | D102: 5.444759777
A103: 98 | B103: 392 | C103: 392 | D103: 5.458737798
A104: 99 | B104: 396 | C104: 396 | D104: 5.4729933
A105: 100 | B105: 400 | C105: 400 | D105: 5.487530631
